bitfinex/quotes_SOLUSD_20260310
["timestamp","ask_amount","ask_price","bid_price","bid_amount"]
[1773149848290,3.69383402,86.416,86.306,46.34655455]
[1773149848291,1.35723727,86.382,86.35,11.02769688]
[1773149848505,1.35723727,86.399,86.351,1.32453693]
[1773149848686,11.57500054,86.394,86.361,1.32453693]
[1773149848880,11.02769688,86.39,86.361,1.32453693]
[1773149849079,11.57500054,86.394,86.361,1.32453693]
[1773149849300,11.02769688,86.39,86.342,1.32453693]
[1773149849498,1.35723727,86.392,86.36,11.02769688]
[1773149849678,1.35723727,86.392,86.351,1.32453693]
[1773149849679,1.35723727,86.417,86.38,11.02769688]
[1773149849877,1.35723727,86.429,86.39,11.02769688]
[1773149850087,1.35723727,86.429,86.391,1.32453693]
[1773149850301,40.4961355,86.428,86.391,1.32453693]
[1773149850595,40.4961355,86.428,86.342,3.69383402]
[1773149850596,1.35723727,86.465,86.401,1.32453693]
[1773149850794,1.35723727,86.449,86.41,11.02769688]
[1773149851980,40.47880645,86.465,86.392,11.57514584]
[1773149851981,11.02769688,86.43,86.392,11.57514584]
[1773149852178,11.02769688,86.42,86.39,11.02769688]
[1773149852380,1.35723727,86.399,86.336,1.32453693]
[1773149852596,1.35723727,86.399,86.35,11.02769688]
[1773149852779,11.02769688,86.39,86.351,1.32453693]
[1773149853700,11.02769688,86.37,86.336,1.3315573]
[1773149854608,11.02769688,86.37,86.337,11.58251966]
[1773149854810,11.57554781,86.389,86.338,1.3315573]
[1773149854979,11.02769688,86.38,86.341,1.3315573]
[1773149855385,1.32147048,86.369,86.335,11.58278797]
[1773149855986,11.02769688,86.37,86.336,1.3315573]
[1773149856198,1.32147048,86.381,86.336,1.3315573]
[1773149856390,11.02769688,86.37,86.341,1.3315573]
[1773149856587,11.57822829,86.369,86.335,11.58278797]
[1773149857006,11.02769688,86.38,86.341,1.3315573]
[1773149857213,46.27254693,86.445,86.351,1.3315573]
[1773149857214,11.57619208,86.385,86.351,1.3315573]
[1773149857501,1.32147048,86.379,86.34,11.02769688]
[1773149858311,11.02769688,86.37,86.338,1.3315573]
[1773149858683,1.32147048,86.379,86.338,1.3315573]
[1773149858684,1.32147048,86.379,86.34,11.02769688]
[1773149859207,1.32147048,86.359,86.334,21.85773947]
[1773149859690,11.57702192,86.378,86.341,1.3315573]
[1773149859893,40.51957673,86.378,86.341,1.3315573]
[1773149860096,11.02769688,86.36,86.334,10.27489121]
[1773149860307,40.51957673,86.378,86.335,11.58278797]
[1773149860308,1.32147048,86.373,86.335,11.58278797]
[1773149860486,11.02769688,86.37,86.336,1.3315573]
[1773149860682,11.02769688,86.37,86.334,10.27489121]
[1773149860683,11.57822829,86.369,86.34,11.02769688]
[1773149861308,11.57822829,86.369,86.341,1.3315573]
[1773149861508,40.52379903,86.369,86.335,12.91434527]
[1773149861713,11.02769688,86.36,86.334,10.27489121]
[1773149861913,40.52379903,86.369,86.267,46.36722787]
[1773149861914,11.02769688,86.34,86.305,1.3315573]
[1773149862116,11.02769688,86.33,86.293,1.3315573]
[1773149862427,1.32147048,86.339,86.301,1.3315573]
[1773149862615,11.02769688,86.33,86.301,1.3315573]
[1773149862788,11.58359299,86.329,86.303,1.3315573]
[1773149863189,11.02769688,86.33,86.303,1.3315573]
[1773149863398,22.61127017,86.33,86.303,1.3315573]
[1773149864511,22.61127017,86.33,86.251,28.98517118]
[1773149864512,1.26251927,86.309,86.251,28.98517118]
[1773149864711,11.02769688,86.33,86.291,1.3315573]
[1773149865017,11.02769688,86.32,86.291,1.3315573]
[1773149865312,11.02769688,86.33,86.291,1.3315573]
[1773149865495,11.02769688,86.32,86.291,1.3315573]
[1773149865691,11.02769688,86.32,86.28,11.02769688]
[1773149865996,40.53834927,86.338,86.251,150.72289015]
[1773149865997,11.02769688,86.33,86.291,1.3315573]
[1773149866200,11.58107263,86.348,86.302,1.27812683]
[1773149866502,11.58107263,86.348,86.284,11.58953638]
[1773149866503,11.02769688,86.33,86.285,1.27812683]
[1773149866686,11.02769688,86.33,86.284,11.58953638]
[1773149866687,11.02769688,86.33,86.291,1.27812683]
[1773149866891,11.58265381,86.336,86.3,11.02769688]
[1773149867091,11.02769688,86.33,86.293,1.27812683]
[1773149867910,11.02769688,86.33,86.301,1.27812683]
[1773149868293,1.26878189,86.358,86.311,1.27812683]
[1773149868488,11.02769688,86.35,86.311,1.27812683]
[1773149868693,11.02769688,86.35,86.292,40.5599592]
[1773149868694,1.26878189,86.319,86.264,1.27812683]
[1773149868915,11.02769688,86.29,86.265,12.87031369]
[1773149869128,11.02769688,86.29,86.265,11.59218686]
[1773149869322,11.02769688,86.28,86.255,1.27812683]
[1773149869497,11.02769688,86.27,86.25,0.1]
[1773149869693,11.02769688,86.26,86.238,11.59577585]
[1773149870003,11.02769688,86.26,86.201,72.83666909]
[1773149870004,11.02769688,86.26,86.224,30.27237437]
[1773149870208,11.02769688,86.26,86.225,1.27812683]
[1773149870411,11.02769688,86.27,86.231,1.27812683]
[1773149871013,11.02769688,86.26,86.232,11.59662306]
[1773149871211,11.02769688,86.25,86.221,11.59810255]
[1773149871409,1.27237632,86.258,86.221,11.59810255]
[1773149871410,11.02769688,86.24,86.221,11.59810255]
[1773149871709,11.02769688,86.24,86.206,1.27812683]
[1773149871710,11.02769688,86.24,86.209,11.59971696]
[1773149871916,1.27237632,86.258,86.211,1.27812683]
[1773149871917,1.27355321,86.258,86.211,1.27812683]
[1773149872217,46.33712452,86.324,86.209,11.59971696]
[1773149872218,11.02769688,86.27,86.231,1.27812683]
[1773149872616,1.27355321,86.292,86.241,1.27812683]
[1773149872815,11.02769688,86.29,86.251,1.27812683]
[1773149872992,1.27355321,86.292,86.251,1.27812683]
[1773149872993,11.02769688,86.28,86.251,1.27812683]
[1773149873191,1.27355321,86.292,86.252,1.27812683]
[1773149873192,11.58948543,86.286,86.252,1.27812683]
[1773149873504,46.33864241,86.322,86.251,11.59394161]
[1773149873505,11.58761978,86.299,86.261,1.27812683]
[1773149873820,11.02769688,86.31,86.271,1.27812683]
[1773149874201,11.58528485,86.317,86.281,1.27812683]
[1773149874508,28.96011671,86.326,86.281,1.27812683]
[1773149874509,11.58458983,86.322,86.281,1.27812683]
[1773149874700,11.02769688,86.31,86.27,11.02769688]
[1773149874899,1.27696191,86.309,86.268,1.27812683]
[1773149875215,1.27696191,86.309,86.26,11.02769688]
[1773149875216,1.27696191,86.335,86.291,1.27812683]
[1773149875416,52.14,86.368,86.281,1.27812683]
[1773149875417,11.02769688,86.32,86.281,1.27812683]
[1773149875595,1.27696191,86.329,86.29,11.02769688]
[1773149875999,11.02769688,86.3,86.271,11.59138064]
[1773149876619,11.02769688,86.3,86.261,11.5927244]
[1773149876812,11.02769688,86.29,86.261,11.5927244]
[1773149877017,11.02769688,86.3,86.271,1.27812683]
[1773149877215,1.2791791,86.299,86.26,11.02769688]
[1773149877517,11.02769688,86.29,86.251,1.27812683]
[1773149877821,11.02769688,86.29,86.25,40.01293349]
[1773149877822,1.28027307,86.318,86.261,1.27812683]
[1773149878026,11.02769688,86.31,86.271,1.27812683]
[1773149878220,11.52769688,86.31,86.271,1.27812683]
[1773149878420,11.02769688,86.3,86.26,11.02769688]
[1773149878626,11.02769688,86.3,86.26,12.30582371]
[1773149878824,11.02769688,86.3,86.27,11.02769688]
[1773149879122,11.02769688,86.3,86.261,1.27812683]
[1773149879422,11.02769688,86.3,86.263,1.27812683]
[1773149879611,11.02769688,86.29,86.252,11.59393405]
[1773149880118,11.02769688,86.29,86.252,41.85689601]
[1773149880317,12.31012474,86.29,86.252,12.87206088]
[1773149880524,1.28242786,86.29,86.252,11.59393405]
[1773149880829,40.55244009,86.308,86.232,1.27812683]
[1773149880830,11.02769688,86.27,86.232,1.27812683]
[1773149881026,12.31118331,86.27,86.232,1.27812683]
[1773149881216,12.31118331,86.27,86.192,50.10155543]
[1773149881217,1.28348643,86.259,86.219,11.59827272]
[1773149881418,11.02769688,86.24,86.219,11.59827272]
[1773149881607,11.59469,86.247,86.167,29.01342741]
[1773149881608,1.28348643,86.229,86.167,29.01342741]
[1773149881800,11.02769688,86.22,86.18,12.30582371]
[1773149882013,11.02769688,86.22,86.181,1.27812683]
[1773149882213,1.28348643,86.229,86.181,1.27812683]
[1773149882411,46.35483464,86.291,86.201,1.27812683]
[1773149882412,11.02769688,86.24,86.201,1.27812683]
[1773149882708,1.28453785,86.254,86.211,1.27812683]
[1773149882909,11.02769688,86.25,86.211,1.27812683]
[1773149883409,40.57829871,86.253,86.21,11.02769688]
[1773149883410,11.59433732,86.249,86.213,1.27812683]
[1773149883619,11.59433732,86.249,86.212,11.59931332]
[1773149883620,12.30735634,86.26,86.221,1.27812683]
[1773149883819,11.02769688,86.25,86.212,11.59931332]
[1773149884346,11.02769688,86.26,86.221,1.34108165]
[1773149885314,11.02769688,86.28,86.241,1.34108165]
[1773149885623,11.02769688,86.28,86.24,11.02769688]
[1773149885624,22.61790199,86.28,86.243,1.34108165]
[1773149885821,22.61790199,86.28,86.213,46.39655541]
[1773149885822,1.27965946,86.295,86.251,1.34108165]
[1773149886024,1.27965946,86.33,86.281,1.34108165]
[1773149886230,1.27965946,86.33,86.29,11.02769688]
[1773149886414,1.27965946,86.355,86.3,11.02769688]
[1773149886735,1.27965946,86.355,86.236,4.82477569]
[1773149886736,11.02769688,86.37,86.331,1.34108165]
[1773149886903,11.02769688,86.34,86.302,1.34108165]
[1773149887107,11.02769688,86.35,86.311,1.34108165]
[1773149887316,1.27965946,86.366,86.311,1.34108165]
[1773149887634,1.27965946,86.366,86.259,3.69383402]
[1773149887635,11.02769688,86.33,86.293,11.58835241]
[1773149887833,1.27965946,86.34,86.276,1.34108165]
[1773149887834,11.02769688,86.31,86.276,1.34108165]
[1773149888013,11.02769688,86.31,86.222,46.39157776]
[1773149888014,11.02769688,86.29,86.259,1.34108165]
[1773149888528,11.02769688,86.28,86.247,1.34108165]
[1773149888706,11.02769688,86.29,86.25,11.02769688]
[1773149888909,11.02769688,86.28,86.25,1.34108165]
[1773149889404,11.02769688,86.28,86.245,40.58206272]
[1773149889405,11.02769688,86.26,86.225,1.34108165]
[1773149889610,11.59299319,86.259,86.227,1.34108165]
[1773149889820,11.02769688,86.25,86.221,11.59810255]
[1773149890123,11.59111193,86.273,86.222,1.34108165]
[1773149890328,11.02769688,86.26,86.23,11.02769688]
[1773149890526,11.59111193,86.273,86.211,11.59944786]
[1773149890527,11.02769688,86.24,86.211,11.59944786]
[1773149890740,11.02769688,86.22,86.145,1.34108165]
[1773149890942,11.02769688,86.22,86.144,11.60846953]
[1773149890943,1.27965946,86.234,86.161,1.34108165]
[1773149891116,11.02769688,86.21,86.171,1.34108165]
[1773149891439,11.02769688,86.2,86.172,11.60469758]
[1773149891657,11.02769688,86.19,86.142,1.34108165]
[1773149891928,11.02769688,86.19,86.141,11.60887382]
[1773149891929,11.02769688,86.19,86.15,11.02769688]
[1773149892141,40.59335892,86.221,86.151,1.34108165]
[1773149892142,1.27965946,86.21,86.151,1.34108165]
[1773149892343,11.02769688,86.2,86.165,1.34108165]
[1773149892634,3.69383402,86.218,86.151,1.34108165]
[1773149892635,11.02769688,86.19,86.151,1.34108165]
[1773149892930,11.02769688,86.18,86.141,40.63105837]
[1773149893117,11.02769688,86.22,86.13,0.1]
[1773149893118,11.02769688,86.16,86.13,0.1]
[1773149893314,3.69383402,86.196,86.131,11.61022163]
[1773149893315,11.02769688,86.17,86.131,11.61022163]
[1773149893522,11.02769688,86.17,86.133,11.60995205]
[1773149893523,11.02769688,86.16,86.133,11.60995205]
[1773149893711,1.22619702,86.182,86.134,1.34108165]
[1773149894007,11.02769688,86.18,86.134,1.34108165]
[1773149894212,11.60348568,86.181,86.14,11.02769688]
[1773149894451,11.60169418,86.195,86.151,1.34108165]
[1773149894611,11.02769688,86.2,86.133,40.63483217]
[1773149894612,11.02769688,86.2,86.17,11.02769688]
[1773149894815,11.02769688,86.2,86.16,12.36877853]
[1773149895015,28.99493333,86.222,86.133,191.56420882]
[1773149895016,11.02769688,86.17,86.133,11.60995205]
[1773149895321,11.02769688,86.17,86.13,11.12769688]
[1773149895322,11.02769688,86.17,86.131,12.95130328]
[1773149895525,11.60644854,86.159,86.13,0.1]
[1773149895734,11.02769688,86.16,86.13,0.1]
[1773149895917,11.02769688,86.15,86.13,0.1]
[1773149896118,11.02769688,86.16,86.13,0.1]
[1773149897431,1.22697215,86.17,86.14,11.02769688]
[1773149897432,11.02769688,86.17,86.14,11.02769688]
[1773149897654,30.22981524,86.201,86.143,1.34108165]
[1773149897816,30.22981524,86.201,86.142,11.60873905]
[1773149897817,11.02769688,86.19,86.151,1.34108165]
[1773149898436,11.02769688,86.19,86.16,11.02769688]
[1773149898637,11.02769688,86.17,86.142,11.60873905]
[1773149898844,11.02769688,86.17,86.13,0.1]
[1773149899015,11.60092807,86.2,86.135,11.60965883]
[1773149899016,1.22853898,86.175,86.135,11.60965883]
[1773149899216,11.02769688,86.16,86.13,0.1]
[1773149899414,11.02769688,86.15,86.13,0.1]
[1773149899617,11.09521887,86.16,86.13,0.1]
[1773149899816,11.09521887,86.15,86.13,0.1]
[1773149900041,11.09521887,86.18,86.141,1.34108165]
[1773149900241,11.09521887,86.17,86.141,1.34108165]
[1773149900549,1.22891777,86.188,86.141,1.34108165]
[1773149900716,11.09521887,86.18,86.141,1.34108165]
[1773149901124,11.09521887,86.18,86.13,0.1]
[1773149901125,11.09521887,86.19,86.151,1.34108165]
[1773149901420,11.09521887,86.18,86.151,1.34108165]
[1773149901623,11.09521887,86.18,86.152,11.60739158]
[1773149901937,52.18,86.225,86.161,1.34108165]
[1773149901938,11.09521887,86.19,86.161,1.34108165]
[1773149902144,11.09521887,86.21,86.181,1.34108165]
[1773149902536,63.77763011,86.225,86.181,1.34108165]
[1773149902724,11.09521887,86.21,86.181,1.34108165]
[1773149903120,46.37596936,86.252,86.181,1.34108165]
[1773149903121,1.2300476,86.254,86.181,1.34108165]
[1773149903326,11.09521887,86.24,86.211,1.34108165]
[1773149903537,11.09521887,86.25,86.211,1.34108165]
[1773149903739,11.09521887,86.26,86.23,11.09521887]
[1773149903927,11.09521887,86.27,86.231,1.34108165]
[1773149904347,11.09521887,86.26,86.231,1.34108165]
[1773149904729,11.09521887,86.25,86.218,1.34108165]
[1773149904929,11.09521887,86.26,86.221,1.34108165]
[1773149905336,11.09521887,86.27,86.231,1.34108165]
[1773149905533,11.09521887,86.27,86.2,46.40345437]
[1773149905534,1.23074995,86.239,86.153,1.34108165]
[1773149905738,11.09521887,86.21,86.181,1.34108165]
[1773149905934,11.09521887,86.21,86.156,58.03426342]
[1773149905935,11.59581622,86.238,86.191,1.34108165]
[1773149906122,11.09521887,86.23,86.191,1.34108165]
[1773149906328,11.09521887,86.22,86.191,1.34108165]
[1773149907322,11.09521887,86.21,86.18,11.09521887]
[1773149907523,11.09521887,86.2,86.181,1.34108165]
[1773149907726,11.09521887,86.2,86.182,11.60335104]
[1773149908029,11.09521887,86.21,86.182,11.60335104]
[1773149908225,11.59729551,86.227,86.172,1.34108165]
[1773149908226,11.09521887,86.2,86.172,1.34108165]
[1773149908747,40.59053428,86.227,86.16,11.60631383]
[1773149908748,11.09521887,86.18,86.16,11.60631383]
[1773149908939,1.23177323,86.201,86.16,40.62209841]
[1773149908940,11.09521887,86.19,86.16,40.62209841]
[1773149909133,11.09521887,86.18,86.16,11.60631383]
[1773149909737,11.09521887,86.18,86.15,29.01914217]
[1773149909738,11.09521887,86.17,86.15,29.01914217]
[1773149910048,11.09521887,86.17,86.148,11.60793053]
[1773149910252,11.09521887,86.18,86.151,1.34108165]
[1773149910547,11.60146642,86.196,86.125,46.44393667]
[1773149910548,11.09521887,86.16,86.134,11.6096895]
[1773149910749,1.23243255,86.183,86.134,11.6096895]
[1773149911045,11.09521887,86.15,86.127,11.61069838]
[1773149911343,11.09521887,86.15,86.131,11.61022163]
[1773149911548,11.09521887,86.15,86.125,1.34108165]
[1773149911549,11.09521887,86.14,86.125,11.6109907]
[1773149911929,11.09521887,86.14,86.12,11.61159112]
[1773149912125,11.09521887,86.14,86.072,3.69383402]
[1773149912126,1.23309933,86.151,86.1,12.43630052]
[1773149912331,11.09521887,86.13,86.122,2.31198649]
[1773149913147,11.09521887,86.14,86.122,2.31198649]
[1773149913344,11.09521887,86.13,86.122,2.31198649]
[1773149913549,11.09521887,86.13,86.104,11.61383006]
[1773149913753,11.09521887,86.13,86.092,1.38392501]
[1773149914253,29.01847896,86.152,86.092,1.38392501]
[1773149914254,11.09521887,86.11,86.092,1.38392501]
[1773149914435,29.01847896,86.152,86.052,1.38392501]
[1773149914630,11.09521887,86.09,86.052,1.38392501]
[1773149914830,11.09521887,86.09,86.061,1.38392501]
[1773149915346,11.09521887,86.09,86.051,40.67355405]
[1773149915347,11.09521887,86.08,86.051,11.62101544]
[1773149915547,11.09521887,86.06,86.05,0.1]
[1773149915751,11.09521887,86.04,86.013,1.38392501]
[1773149915944,11.09521887,86.04,85.984,11.63007071]
[1773149915945,3.69383402,86.076,85.988,1.38392501]
[1773149916146,226.49135847,86.096,85.988,1.38392501]
[1773149916147,11.09521887,86.0,85.988,1.38392501]
[1773149916449,11.09521887,86.0,85.967,29.08064783]
[1773149916450,11.09521887,86.04,85.971,11.63182933]
[1773149916646,3.69383402,86.037,85.971,11.63182933]
[1773149916837,11.09521887,86.01,85.972,1.38392501]
[1773149917032,284.56606577,86.096,85.971,40.71140267]
[1773149917033,284.56606577,86.096,85.981,1.38392501]
[1773149917236,284.56606577,86.096,86.001,1.38392501]
[1773149917237,11.09521887,86.03,86.001,1.38392501]
[1773149917553,11.09521887,86.02,86.001,1.38392501]
[1773149917852,11.09521887,86.02,85.971,40.71140267]
[1773149917853,284.56606577,86.096,85.94,11.09521887]
[1773149917854,1.30871273,86.009,85.94,11.09521887]
[1773149918051,11.09521887,85.97,85.94,11.09521887]
[1773149918352,40.69305681,86.01,85.938,40.72703576]
[1773149918353,11.62506829,86.021,85.96,11.09521887]
[1773149918655,11.09521887,86.0,85.96,11.09521887]
[1773149919151,41.99645176,86.021,85.96,11.09521887]
[1773149919335,11.09521887,86.0,85.96,11.09521887]
[1773149919533,11.09521887,86.0,85.938,40.72703576]
[1773149919534,11.62506829,86.021,85.938,40.72703576]
[1773149919733,11.62760695,86.003,85.97,11.63189318]
[1773149920056,11.62760695,86.003,85.935,139.64042589]
[1773149920057,1.30871273,85.979,85.911,40.7398354]
[1773149920355,87.20636582,86.003,85.911,40.7398354]
[1773149920356,1.30871273,85.965,85.92,11.09521887]
[1773149920555,11.09521887,85.96,85.92,11.09521887]
[1773149920853,11.09521887,85.96,85.911,40.7398354]
[1773149920854,1.30871273,85.982,85.911,40.7398354]
[1773149921052,133.71637128,86.003,85.92,11.09521887]
[1773149921053,1.30871273,85.969,85.92,11.09521887]
[1773149921238,11.09521887,85.96,85.92,11.09521887]
[1773149921433,1.30871273,85.969,85.911,40.7398354]
[1773149921434,11.09521887,85.95,85.911,40.7398354]
[1773149921733,11.09521887,85.98,85.941,11.63588973]
[1773149921939,11.09521887,85.98,85.94,11.09521887]
[1773149921940,11.09521887,85.97,85.94,11.63601345]
[1773149922161,11.09521887,85.96,85.923,29.09554149]
[1773149922345,11.09521887,85.96,85.925,1.32084821]
[1773149922539,11.09521887,85.95,85.925,1.32084821]
[1773149922741,1.30871273,85.971,85.925,1.32084821]
[1773149922963,11.09521887,85.96,85.925,1.32084821]
[1773149923255,11.09521887,85.95,85.921,11.63859824]
[1773149923643,1.30871273,85.971,85.922,1.32084821]
[1773149923849,1.30871273,85.971,85.93,11.09521887]
[1773149924055,11.63126078,85.976,85.94,11.09521887]
[1773149924257,11.09521887,85.97,85.931,1.32084821]
[1773149924564,11.09521887,85.96,85.931,1.32084821]
[1773149924856,11.09521887,85.98,85.941,1.32084821]
[1773149925162,1.30871273,85.99,85.941,1.32084821]
[1773149925163,11.09521887,85.97,85.941,1.32084821]
[1773149925344,11.09521887,85.98,85.941,1.32084821]
[1773149925543,11.09521887,85.98,85.95,11.09521887]
[1773149925739,11.09521887,85.98,85.941,1.32084821]
[1773149926047,11.09521887,85.98,85.94,11.09521887]
[1773149926048,11.09521887,85.99,85.96,11.09521887]
[1773149926362,29.06240443,86.022,85.921,11.63859824]
[1773149926363,1.31344004,85.969,85.921,11.63859824]
[1773149926559,11.09521887,85.98,85.921,40.73509385]
[1773149926560,1.31344004,85.957,85.921,40.73509385]
[1773149926766,4.50521898,85.95,85.921,40.73509385]
[1773149927144,11.09521887,85.96,85.921,42.06934005]
[1773149927343,11.09521887,85.96,85.93,11.09521887]
[1773149927658,1.31344004,85.964,85.92,11.09521887]
[1773149927855,11.09521887,85.95,85.917,11.6391401]
[1773149928471,11.63358849,85.958,85.921,1.3342462]
[1773149928662,11.63358849,85.958,85.912,11.63974677]
[1773149928663,11.09521887,85.94,85.912,11.63974677]
[1773149928861,11.09521887,85.94,85.91,9.07562128]
[1773149928862,11.09521887,85.93,85.91,9.07562128]
[1773149929052,40.71755973,85.958,85.91,9.07562128]
[1773149929053,11.09521887,85.92,85.91,9.07562128]
[1773149929255,11.09521887,85.92,85.882,1.3342462]
[1773149929453,40.71755973,85.958,85.896,1.3342462]
[1773149929454,11.09521887,85.93,85.896,1.3342462]
[1773149929768,11.09521887,85.93,85.891,1.3342462]
[1773149929946,11.09521887,85.93,85.892,42.08309358]
[1773149930268,11.09521887,85.91,85.886,11.64320869]
[1773149930467,11.09521887,85.91,85.887,1.3342462]
[1773149930842,11.63548357,85.944,85.891,1.3342462]
[1773149931057,11.09521887,85.91,85.891,1.3342462]
[1773149931758,40.72419249,85.944,85.861,1.3342462]
[1773149931759,11.09521887,85.9,85.861,1.3342462]
[1773149932063,11.09521887,85.89,85.864,11.64632442]
[1773149932265,11.63941104,85.915,85.864,11.64632442]
[1773149932479,11.09521887,85.89,85.864,40.76213547]
[1773149932847,11.09521887,85.89,85.865,1.3342462]
[1773149933159,11.09521887,85.88,85.864,11.64632442]
[1773149933464,11.09521887,85.88,85.853,29.11928192]
[1773149933465,0.88935763,85.893,85.853,11.64781661]
[1773149933661,11.09521887,85.87,85.853,11.64781661]
[1773149933868,46.53894263,85.95,85.843,1.41627138]
[1773149934050,11.09521887,85.89,85.851,1.41627138]
[1773149934245,3.69383402,85.938,85.851,1.41627138]
[1773149934446,40.72561407,85.941,85.842,40.77258217]
[1773149934447,40.72561407,85.941,85.871,1.41627138]
[1773149934648,11.09521887,85.9,85.871,1.41627138]
[1773149935054,40.72561407,85.941,85.871,1.41627138]
[1773149935055,11.09521887,85.89,85.871,1.41627138]
[1773149935246,11.09521887,85.9,85.871,1.41627138]
[1773149935449,11.09521887,85.89,85.871,1.41627138]
[1773149935670,11.09521887,85.92,85.871,1.41627138]
[1773149935967,11.63886916,85.919,85.883,1.41627138]
[1773149936166,46.52907094,85.968,85.891,1.41627138]
[1773149936167,11.09521887,85.92,85.891,1.41627138]
[1773149936674,11.09521887,85.95,85.911,1.41627138]
[1773149936849,46.50643522,86.01,85.921,1.41627138]
[1773149936850,11.63088231,85.978,85.921,1.41627138]
[1773149937048,46.50045003,86.021,85.891,3.69383402]
[1773149937049,11.09521887,85.97,85.891,3.69383402]
[1773149937251,11.09521887,85.98,85.883,1.41627138]
[1773149937465,11.09521887,85.94,85.911,1.41627138]
[1773149937851,127.9537013,85.986,85.912,11.63981748]
[1773149938054,11.09521887,85.93,85.913,1.41627138]
[1773149938254,81.4345005,85.986,85.913,1.41627138]
[1773149938568,11.09521887,85.96,85.931,1.41627138]
[1773149939068,11.09521887,85.97,85.94,11.09521887]
[1773149939270,11.09521887,85.97,85.912,40.73936119]
[1773149939271,0.02317082,86.009,85.96,11.09521887]
[1773149939469,11.09521887,85.98,85.941,1.41627138]
[1773149939665,11.09521887,85.97,85.941,1.41627138]
[1773149939857,0.02317082,86.002,85.943,1.41627138]
[1773149940059,46.49701998,86.028,85.971,1.41627138]
[1773149940060,11.09521887,86.0,85.971,1.41627138]
[1773149940257,133.66187032,86.038,85.942,11.63575434]
[1773149940258,11.09521887,85.98,85.942,11.63575434]
[1773149940454,11.09521887,85.98,85.896,46.56761179]
[1773149940455,11.09521887,85.96,85.927,1.41627138]
[1773149940660,11.09521887,85.95,85.931,11.63724383]
[1773149940958,11.09521887,85.94,85.906,29.1012428]
[1773149941162,11.09521887,85.92,85.902,1.41627138]
[1773149941379,11.09521887,85.93,85.902,1.41627138]
[1773149941964,11.09521887,85.93,85.891,11.64266337]
[1773149942166,4.5683629,85.919,85.891,11.64266337]
[1773149942364,4.5683629,85.919,85.884,11.64348312]
[1773149942365,11.09521887,85.9,85.884,11.64348312]
[1773149942573,11.09521887,85.9,85.876,1.41627138]
[1773149942574,11.09521887,85.9,85.879,11.64419054]
[1773149942778,4.5683629,85.919,85.879,11.64419054]
[1773149942953,11.09521887,85.91,85.881,1.41627138]
[1773149943277,4.5683629,85.919,85.868,1.41627138]
[1773149943580,11.09521887,85.89,85.855,1.41627138]
[1773149943775,0.04082066,85.918,85.855,1.41627138]
[1773149943976,11.09521887,85.88,85.856,11.64740961]
[1773149944564,4.5683629,85.899,85.861,1.41627138]
[1773149944781,4.5683629,85.899,85.856,40.76593365]
[1773149944782,4.5683629,85.899,85.871,1.41627138]
[1773149944960,4.5683629,85.899,85.856,40.76593365]
[1773149944961,22.73395257,85.92,85.881,1.41627138]
[1773149945364,22.73395257,85.92,85.856,145.59262019]
[1773149945365,11.09521887,85.92,85.891,1.41627138]
[1773149945576,46.51795012,85.989,85.86,11.09521887]
[1773149945577,11.09521887,85.93,85.901,1.41627138]
[1773149945967,11.63751469,85.929,85.902,11.64117249]
[1773149946278,11.63751469,85.929,85.901,1.41627138]
[1773149946483,11.09521887,85.93,85.902,11.64117249]
[1773149946654,11.09521887,85.93,85.874,46.57954371]
[1773149946655,11.09521887,85.92,85.893,11.64232983]
[1773149946853,11.09521887,85.92,85.888,1.41627138]
[1773149946854,0.0617778,85.951,85.888,13.05923811]
[1773149947067,11.09521887,85.91,85.888,13.05923811]
[1773149947280,0.0617778,85.939,85.888,40.75064184]
[1773149947281,11.09521887,85.92,85.888,40.75064184]
[1773149947580,191.94974404,85.96,85.901,1.41627138]
[1773149947581,40.71661237,85.96,85.901,1.41627138]
[1773149947790,11.09521887,85.93,85.901,1.41627138]
[1773149948081,40.78243394,85.96,85.888,40.75064184]
[1773149948082,11.09521887,85.92,85.891,13.05893475]
[1773149948475,11.63886916,85.919,85.891,13.05893475]
[1773149948659,11.09521887,85.92,85.891,1.41627138]
[1773149948859,11.09521887,85.91,85.891,1.41627138]
[1773149949056,11.09521887,85.91,85.851,93.18442656]
[1773149949057,11.09521887,85.9,85.863,1.41627138]
[1773149949365,11.09521887,85.9,85.823,46.60724524]
[1773149949366,11.09521887,85.89,85.865,1.41627138]
[1773149949572,11.09521887,85.89,85.851,1.41627138]
[1773149949883,11.09521887,85.88,85.851,1.41627138]
[1773149950073,0.06983465,85.908,85.852,11.64795228]
[1773149950378,0.06983465,85.908,85.823,46.60724524]
[1773149950379,11.09521887,85.87,85.837,1.41627138]
[1773149950570,11.09521887,85.88,85.841,11.6494449]
[1773149950772,11.09521887,85.88,85.85,11.09521887]
[1773149950974,0.07771304,85.908,85.851,1.41627138]
[1773149951165,11.09521887,85.87,85.851,1.41627138]
[1773149951360,11.09521887,85.88,85.851,1.41627138]
[1773149951885,11.09521887,85.89,85.851,1.41627138]
[1773149952058,11.09521887,85.89,85.861,1.41627138]
[1773149952258,11.09521887,85.92,85.861,1.41627138]
[1773149952259,0.07768749,85.92,85.861,1.41627138]
[1773149952509,11.09521887,85.9,85.861,1.41627138]
[1773149952666,0.07768749,85.92,85.88,11.09521887]
[1773149952862,11.09521887,85.91,85.871,1.41627138]